[Event "Late-Titled-Tuesday-Blitz-February-06-2024"]
[Site "Chess.com"]
[Date "2024.02.06"]
[Round "5"]
[White "sotochess"]
[Black "youngdinousaur"]
[Result "1-0"]
[WhiteElo "2548"]
[BlackElo "2337"]
[TimeControl "180+1"]
[EndTime "14:53:55 PST"]
[Termination "sotochess won by resignation"]

1. e4 {[%clk 0:03:00]} 1... c5 {[%clk 0:03:00.2]} 2. Nf3 {[%clk 0:02:59.7]} 2...
e6 {[%clk 0:03:01.1]} 3. g3 {[%clk 0:02:56.4]} 3... Nc6 {[%clk 0:03:00.8]} 4.
Bg2 {[%clk 0:02:56.4]} 4... g6 {[%clk 0:02:59.8]} 5. d4 {[%clk 0:02:54.5]} 5...
cxd4 {[%clk 0:02:59.2]} 6. Nxd4 {[%clk 0:02:55.4]} 6... a6 {[%clk 0:02:59.5]} 7.
O-O {[%clk 0:02:53.3]} 7... Bg7 {[%clk 0:02:59.9]} 8. Nb3 {[%clk 0:02:45.2]}
8... Nge7 {[%clk 0:02:59.9]} 9. c4 {[%clk 0:02:44.5]} 9... O-O {[%clk
0:02:56.7]} 10. c5 {[%clk 0:02:43.5]} 10... b6 {[%clk 0:02:50.8]} 11. cxb6
{[%clk 0:02:41.7]} 11... d5 {[%clk 0:02:35.6]} 12. exd5 {[%clk 0:02:38.9]} 12...
Nxd5 {[%clk 0:02:35.9]} 13. Nc3 {[%clk 0:02:06.6]} 13... Nxc3 {[%clk 0:02:08.3]}
14. bxc3 {[%clk 0:02:05.2]} 14... Qxb6 {[%clk 0:01:59.1]} 15. Qd6 {[%clk
0:02:04]} 15... Bb7 {[%clk 0:01:54.4]} 16. Be3 {[%clk 0:02:03.3]} 16... Qd8
{[%clk 0:01:51.6]} 17. Rad1 {[%clk 0:01:59.3]} 17... Be5 {[%clk 0:01:28.1]} 18.
Qxe5 {[%clk 0:01:50.5]} 18... Nxe5 {[%clk 0:00:54.9]} 19. Rxd8 {[%clk
0:01:49.6]} 19... Raxd8 {[%clk 0:00:53.2]} 20. Bxb7 {[%clk 0:01:49.4]} 20... Rd3
{[%clk 0:00:53]} 21. Bd4 {[%clk 0:01:45.5]} 21... Nf3+ {[%clk 0:00:50.4]} 22.
Bxf3 {[%clk 0:01:34.6]} 22... Rxf3 {[%clk 0:00:51.3]} 23. Kg2 {[%clk 0:01:26.2]}
23... Rd3 {[%clk 0:00:50.8]} 24. Re1 {[%clk 0:01:25.7]} 24... h5 {[%clk
0:00:41.6]} 25. Re5 {[%clk 0:01:24.4]} 25... Re8 {[%clk 0:00:37.9]} 26. Ra5
{[%clk 0:01:20.7]} 26... f6 {[%clk 0:00:34]} 27. Nc5 {[%clk 0:01:17.8]} 27...
Rd2 {[%clk 0:00:30.8]} 28. Rxa6 {[%clk 0:01:17.1]} 28... e5 {[%clk 0:00:30.6]}
29. Be3 {[%clk 0:01:17]} 29... Rc2 {[%clk 0:00:27]} 30. Ne4 {[%clk 0:01:14.9]}
30... Rf8 {[%clk 0:00:21.8]} 31. Nxf6+ {[%clk 0:01:13.3]} 31... Kg7 {[%clk
0:00:21]} 32. Ne4 {[%clk 0:01:12.6]} 1-0

[Event "Late-Titled-Tuesday-Blitz-February-06-2024"]
[Site "Chess.com"]
[Date "2024.02.06"]
[Round "5"]
[White "prime-morty"]
[Black "rezamahdavi2008"]
[Result "0-1"]
[WhiteElo "2581"]
[BlackElo "2835"]
[TimeControl "180+1"]
[EndTime "14:53:57 PST"]
[Termination "rezamahdavi2008 won by resignation"]

1. c4 {[%clk 0:03:00.9]} 1... e5 {[%clk 0:02:59]} 2. Nc3 {[%clk 0:03:01.2]} 2...
Nf6 {[%clk 0:02:59]} 3. Nf3 {[%clk 0:03:01.3]} 3... e4 {[%clk 0:02:59.4]} 4. Ng5
{[%clk 0:03:01.2]} 4... c6 {[%clk 0:02:58.6]} 5. d3 {[%clk 0:02:55.7]} 5... exd3
{[%clk 0:02:43.1]} 6. Qxd3 {[%clk 0:02:54.3]} 6... d5 {[%clk 0:02:39.4]} 7. cxd5
{[%clk 0:02:53.2]} 7... cxd5 {[%clk 0:02:40.3]} 8. Bf4 {[%clk 0:02:43.5]} 8...
Nc6 {[%clk 0:02:28.1]} 9. e3 {[%clk 0:02:40.4]} 9... Qb6 {[%clk 0:02:14.8]} 10.
Qb5 {[%clk 0:02:38]} 10... Bb4 {[%clk 0:01:58.6]} 11. Rc1 {[%clk 0:02:33.4]}
11... O-O {[%clk 0:01:48.5]} 12. Qxb6 {[%clk 0:02:31.4]} 12... axb6 {[%clk
0:01:49.4]} 13. a3 {[%clk 0:02:31.8]} 13... Bxc3+ {[%clk 0:01:50]} 14. Rxc3
{[%clk 0:02:31.4]} 14... d4 {[%clk 0:01:50.8]} 15. exd4 {[%clk 0:02:27.1]} 15...
Nd5 {[%clk 0:01:49.5]} 16. Bd2 {[%clk 0:02:20.2]} 16... Re8+ {[%clk 0:01:43.8]}
17. Kd1 {[%clk 0:02:13]} 17... Nxc3+ {[%clk 0:01:43.1]} 18. Bxc3 {[%clk
0:02:12.9]} 18... Nxd4 {[%clk 0:01:40.7]} 19. Bc4 {[%clk 0:01:55]} 19... Bg4+
{[%clk 0:01:16.8]} 20. f3 {[%clk 0:01:47.1]} 20... Bh5 {[%clk 0:01:10.4]} 21.
Re1 {[%clk 0:01:39.7]} 21... Red8 {[%clk 0:00:48]} 22. Kc1 {[%clk 0:01:34.9]}
22... Rac8 {[%clk 0:00:47]} 23. Ba2 {[%clk 0:01:30.9]} 23... Nb5 {[%clk
0:00:46.2]} 24. Re3 {[%clk 0:01:27.8]} 24... Bg6 {[%clk 0:00:42.2]} 25. Nh3
{[%clk 0:01:14.9]} 25... Bd3 {[%clk 0:00:36.8]} 26. Nf4 {[%clk 0:01:09.7]} 26...
Nxc3 {[%clk 0:00:36.2]} 27. bxc3 {[%clk 0:01:09.3]} 27... Rxc3+ {[%clk
0:00:34.4]} 28. Kb2 {[%clk 0:01:09.3]} 28... Rc2+ {[%clk 0:00:34.9]} 29. Kb3
{[%clk 0:01:09.2]} 29... Rd2 {[%clk 0:00:33.5]} 30. Kc3 {[%clk 0:01:00.7]} 30...
Rxa2 {[%clk 0:00:33.2]} 31. Nxd3 {[%clk 0:00:56.7]} 31... Rxa3+ {[%clk
0:00:33.6]} 32. Kc4 {[%clk 0:00:56.3]} 32... b5+ {[%clk 0:00:33.3]} 0-1

[Event "Late-Titled-Tuesday-Blitz-February-06-2024"]
[Site "Chess.com"]
[Date "2024.02.06"]
[Round "5"]
[White "Bala-Afiada"]
[Black "Laico"]
[Result "0-1"]
[WhiteElo "2021"]
[BlackElo "2375"]
[TimeControl "180+1"]
[EndTime "14:53:59 PST"]
[Termination "Laico won by resignation"]

1. d4 {[%clk 0:03:00.9]} 1... e6 {[%clk 0:02:56.2]} 2. Nf3 {[%clk 0:03:00.5]}
2... f5 {[%clk 0:02:50.2]} 3. g3 {[%clk 0:03:00.5]} 3... b6 {[%clk 0:02:50.7]}
4. Bg2 {[%clk 0:03:00.8]} 4... Bb7 {[%clk 0:02:51.6]} 5. O-O {[%clk 0:02:59.8]}
5... Nf6 {[%clk 0:02:52.2]} 6. c4 {[%clk 0:03:00.5]} 6... Be7 {[%clk 0:02:51.2]}
7. b3 {[%clk 0:03:01.2]} 7... O-O {[%clk 0:02:50.7]} 8. Ba3 {[%clk 0:03:01.6]}
8... d6 {[%clk 0:02:49.6]} 9. Nc3 {[%clk 0:02:52.3]} 9... Ne4 {[%clk 0:02:47.9]}
10. Qc2 {[%clk 0:02:50.2]} 10... Nxc3 {[%clk 0:02:46.5]} 11. Qxc3 {[%clk
0:02:50.2]} 11... Bf6 {[%clk 0:02:47]} 12. Qc2 {[%clk 0:02:43.4]} 12... Be4
{[%clk 0:02:45.6]} 13. Qd2 {[%clk 0:02:41.1]} 13... Nd7 {[%clk 0:02:45.8]} 14.
Rad1 {[%clk 0:02:37.5]} 14... Qe8 {[%clk 0:02:42]} 15. Bb2 {[%clk 0:02:32.4]}
15... Qh5 {[%clk 0:02:41.5]} 16. d5 {[%clk 0:02:13.7]} 16... e5 {[%clk
0:02:41.3]} 17. b4 {[%clk 0:02:00.1]} 17... f4 {[%clk 0:02:41.4]} 18. gxf4
{[%clk 0:01:46.1]} 18... exf4 {[%clk 0:02:42.3]} 19. Bxf6 {[%clk 0:01:45.4]}
19... Rxf6 {[%clk 0:02:43.2]} 20. Qd4 {[%clk 0:01:35.8]} 20... Re8 {[%clk
0:02:37.3]} 21. Nd2 {[%clk 0:00:30.1]} 21... Bxg2 {[%clk 0:02:11.8]} 22. Kxg2
{[%clk 0:00:30.2]} 22... Rxe2 {[%clk 0:02:12.1]} 23. Qd3 {[%clk 0:00:20.4]}
23... Ne5 {[%clk 0:01:55.9]} 24. Qe4 {[%clk 0:00:12.8]} 24... Rxe4 {[%clk
0:01:30.8]} 25. Nxe4 {[%clk 0:00:12.6]} 25... f3+ {[%clk 0:01:05.3]} 26. Kh1
{[%clk 0:00:04.7]} 26... Ng4 {[%clk 0:01:04.9]} 0-1

[Event "Late-Titled-Tuesday-Blitz-February-06-2024"]
[Site "Chess.com"]
[Date "2024.02.06"]
[Round "5"]
[White "norwaytoadog"]
[Black "Franmu14"]
[Result "0-1"]
[WhiteElo "2234"]
[BlackElo "2755"]
[TimeControl "180+1"]
[EndTime "14:53:59 PST"]
[Termination "Franmu14 won on time"]

1. e4 {[%clk 0:02:59]} 1... e5 {[%clk 0:03:00.1]} 2. Nf3 {[%clk 0:02:59]} 2...
Nc6 {[%clk 0:03:01]} 3. Bb5 {[%clk 0:02:59.2]} 3... a6 {[%clk 0:03:00.9]} 4. Ba4
{[%clk 0:02:59.5]} 4... Nge7 {[%clk 0:03:01.6]} 5. c3 {[%clk 0:02:57.2]} 5... g6
{[%clk 0:03:02]} 6. d4 {[%clk 0:02:56.6]} 6... exd4 {[%clk 0:03:02.9]} 7. cxd4
{[%clk 0:02:56.6]} 7... Bg7 {[%clk 0:03:03.4]} 8. d5 {[%clk 0:02:56.5]} 8... b5
{[%clk 0:03:04]} 9. Bb3 {[%clk 0:02:55]} 9... Na5 {[%clk 0:03:03.5]} 10. Bd2
{[%clk 0:02:50.5]} 10... Nxb3 {[%clk 0:03:03.1]} 11. Qxb3 {[%clk 0:02:49.9]}
11... O-O {[%clk 0:02:55.7]} 12. Bc3 {[%clk 0:02:37.7]} 12... d6 {[%clk
0:02:54.8]} 13. Nbd2 {[%clk 0:02:32]} 13... a5 {[%clk 0:02:32.3]} 14. Bxg7
{[%clk 0:02:27.4]} 14... Kxg7 {[%clk 0:02:33.2]} 15. Rc1 {[%clk 0:02:24.9]}
15... b4 {[%clk 0:02:32.5]} 16. h4 {[%clk 0:02:21.9]} 16... Ba6 {[%clk
0:02:31.8]} 17. h5 {[%clk 0:02:21.1]} 17... Qd7 {[%clk 0:02:16.3]} 18. Qe3
{[%clk 0:02:20.2]} 18... Ng8 {[%clk 0:02:06.1]} 19. Nd4 {[%clk 0:02:10.8]} 19...
Rae8 {[%clk 0:02:02.8]} 20. Rc6 {[%clk 0:01:34.7]} 20... Bb7 {[%clk 0:01:57.8]}
21. Qg5 {[%clk 0:01:07.7]} 21... Bxc6 {[%clk 0:01:46.7]} 22. dxc6 {[%clk
0:00:50.4]} 22... Re5 {[%clk 0:01:19.2]} 23. Nf5+ {[%clk 0:00:29.1]} 23... Qxf5
{[%clk 0:01:16.3]} 24. h6+ {[%clk 0:00:15.3]} 24... Kh8 {[%clk 0:01:14.6]} 25.
Qxf5 {[%clk 0:00:12.6]} 25... gxf5 {[%clk 0:01:14.5]} 26. f4 {[%clk 0:00:10.4]}
26... Re6 {[%clk 0:01:14.3]} 27. Nf3 {[%clk 0:00:09.2]} 27... fxe4 {[%clk
0:01:13.7]} 28. Ng5 {[%clk 0:00:08.9]} 28... Rxh6 {[%clk 0:01:14]} 0-1

[Event "Late-Titled-Tuesday-Blitz-February-06-2024"]
[Site "Chess.com"]
[Date "2024.02.06"]
[Round "5"]
[White "GoValya"]
[Black "RantomOpening"]
[Result "1/2-1/2"]
[WhiteElo "2280"]
[BlackElo "2504"]
[TimeControl "180+1"]
[EndTime "14:54:04 PST"]
[Termination "Game drawn by repetition"]

1. d4 {[%clk 0:03:00.9]} 1... d5 {[%clk 0:02:58.1]} 2. g3 {[%clk 0:02:59.4]}
2... e6 {[%clk 0:02:58.3]} 3. Bg2 {[%clk 0:02:59.8]} 3... Nf6 {[%clk 0:02:58.1]}
4. Nf3 {[%clk 0:03:00.1]} 4... c5 {[%clk 0:02:58.5]} 5. O-O {[%clk 0:02:58.6]}
5... cxd4 {[%clk 0:02:59]} 6. Nxd4 {[%clk 0:02:58.8]} 6... e5 {[%clk 0:02:59.4]}
7. Nb3 {[%clk 0:02:58.5]} 7... Be6 {[%clk 0:02:59.2]} 8. Bg5 {[%clk 0:02:58.5]}
8... Nbd7 {[%clk 0:02:59.4]} 9. Nc3 {[%clk 0:02:54.1]} 9... Be7 {[%clk
0:02:58.7]} 10. e4 {[%clk 0:02:44.2]} 10... d4 {[%clk 0:02:58.4]} 11. Ne2 {[%clk
0:02:38.4]} 11... h6 {[%clk 0:02:57.9]} 12. Bxf6 {[%clk 0:02:37.9]} 12... Nxf6
{[%clk 0:02:57.6]} 13. h3 {[%clk 0:02:22.5]} 13... O-O {[%clk 0:02:55.9]} 14. f4
{[%clk 0:02:16.4]} 14... exf4 {[%clk 0:02:55.1]} 15. Nxf4 {[%clk 0:02:12.3]}
15... Bxb3 {[%clk 0:02:53.1]} 16. axb3 {[%clk 0:02:12.4]} 16... Bc5 {[%clk
0:02:49.6]} 17. Nd3 {[%clk 0:02:11.2]} 17... Bb6 {[%clk 0:02:48.6]} 18. Qf3
{[%clk 0:02:04.4]} 18... Nd7 {[%clk 0:02:37.1]} 19. e5 {[%clk 0:01:55.6]} 19...
Rb8 {[%clk 0:02:33.1]} 20. Qf5 {[%clk 0:01:37]} 20... Qe7 {[%clk 0:02:26.5]} 21.
Rae1 {[%clk 0:01:05.2]} 21... Rbe8 {[%clk 0:02:25]} 22. Bd5 {[%clk 0:00:53.6]}
22... Bc7 {[%clk 0:02:12.3]} 23. Nf4 {[%clk 0:00:23]} 23... Nxe5 {[%clk
0:02:06.8]} 24. Ng6 {[%clk 0:00:21.2]} 24... Nxg6 {[%clk 0:02:01.2]} 25. Rxe7
{[%clk 0:00:20.7]} 25... Rxe7 {[%clk 0:02:02.1]} 26. Qxg6 {[%clk 0:00:19.5]}
26... Bb6 {[%clk 0:01:54.2]} 27. Kg2 {[%clk 0:00:18.9]} 27... Re2+ {[%clk
0:01:48]} 28. Rf2 {[%clk 0:00:19.1]} 28... Rxf2+ {[%clk 0:01:47.5]} 29. Kxf2
{[%clk 0:00:19.7]} 29... d3+ {[%clk 0:01:48.4]} 30. Ke1 {[%clk 0:00:18.7]} 30...
dxc2 {[%clk 0:01:34.1]} 31. Qxc2 {[%clk 0:00:18.5]} 31... Re8+ {[%clk
0:01:33.9]} 32. Kf1 {[%clk 0:00:18.3]} 32... Re7 {[%clk 0:01:30.2]} 33. Qc8+
{[%clk 0:00:17.1]} 33... Kh7 {[%clk 0:01:30.3]} 34. Qf5+ {[%clk 0:00:17.6]}
34... Kg8 {[%clk 0:01:23.6]} 35. Kg2 {[%clk 0:00:15.1]} 35... Re2+ {[%clk
0:01:22.4]} 36. Kf1 {[%clk 0:00:15.3]} 36... Re7 {[%clk 0:01:21]} 37. Qc8+
{[%clk 0:00:14.8]} 37... Kh7 {[%clk 0:01:20.5]} 38. Qf5+ {[%clk 0:00:14.5]}
38... Kg8 {[%clk 0:01:20.3]} 1/2-1/2

[Event "Late-Titled-Tuesday-Blitz-February-06-2024"]
[Site "Chess.com"]
[Date "2024.02.06"]
[Round "5"]
[White "GHANDEEVAM2003"]
[Black "ContrVersia"]
[Result "1-0"]
[WhiteElo "3042"]
[BlackElo "2845"]
[TimeControl "180+1"]
[EndTime "14:54:06 PST"]
[Termination "GHANDEEVAM2003 won on time"]

1. c4 {[%clk 0:02:46.9]} 1... c6 {[%clk 0:02:56.6]} 2. Nf3 {[%clk 0:02:45.6]}
2... Nf6 {[%clk 0:02:54.9]} 3. e3 {[%clk 0:02:46.5]} 3... d5 {[%clk 0:02:54.6]}
4. b3 {[%clk 0:02:44.5]} 4... Bg4 {[%clk 0:02:54.2]} 5. Bb2 {[%clk 0:02:43.8]}
5... e6 {[%clk 0:02:53.4]} 6. h3 {[%clk 0:02:42.1]} 6... Bh5 {[%clk 0:02:53.3]}
7. Be2 {[%clk 0:02:40.5]} 7... Nbd7 {[%clk 0:02:50.2]} 8. O-O {[%clk 0:02:40.4]}
8... Bd6 {[%clk 0:02:49.9]} 9. d4 {[%clk 0:02:37.9]} 9... O-O {[%clk 0:02:46.2]}
10. Nbd2 {[%clk 0:02:38.6]} 10... Ne4 {[%clk 0:02:45.6]} 11. Nxe4 {[%clk
0:02:38]} 11... dxe4 {[%clk 0:02:46.5]} 12. Nd2 {[%clk 0:02:38.9]} 12... Bxe2
{[%clk 0:02:23.6]} 13. Qxe2 {[%clk 0:02:39.8]} 13... f5 {[%clk 0:02:24.1]} 14.
c5 {[%clk 0:02:38.2]} 14... Bc7 {[%clk 0:02:23.3]} 15. b4 {[%clk 0:02:38.4]}
15... Nf6 {[%clk 0:02:19.1]} 16. b5 {[%clk 0:02:35.3]} 16... Nd5 {[%clk
0:02:16.8]} 17. Rab1 {[%clk 0:02:34.4]} 17... Qg5 {[%clk 0:02:14.4]} 18. f4
{[%clk 0:02:30.8]} 18... Qg3 {[%clk 0:02:02.7]} 19. Rfe1 {[%clk 0:02:25.9]}
19... g5 {[%clk 0:01:12.4]} 20. Nf1 {[%clk 0:02:23]} 20... Qh4 {[%clk
0:01:12.3]} 21. fxg5 {[%clk 0:02:22]} 21... Qxg5 {[%clk 0:01:10.1]} 22. Kh1
{[%clk 0:02:06]} 22... Rf7 {[%clk 0:00:59.6]} 23. bxc6 {[%clk 0:01:58]} 23...
bxc6 {[%clk 0:01:00.5]} 24. Qa6 {[%clk 0:01:58]} 24... Rg7 {[%clk 0:00:41.9]}
25. Re2 {[%clk 0:01:57.3]} 25... Qh5 {[%clk 0:00:41.9]} 26. Rbe1 {[%clk
0:01:39]} 26... f4 {[%clk 0:00:39.8]} 27. Qxc6 {[%clk 0:01:37.3]} 27... Re8
{[%clk 0:00:37.5]} 28. exf4 {[%clk 0:01:33.1]} 28... Nxf4 {[%clk 0:00:37.7]} 29.
Qxe4 {[%clk 0:01:22.9]} 29... Nxe2 {[%clk 0:00:23.8]} 30. Rxe2 {[%clk
0:01:23.8]} 30... Rf8 {[%clk 0:00:23.8]} 31. Qxe6+ {[%clk 0:01:20.2]} 31... Kh8
{[%clk 0:00:23.5]} 32. Nh2 {[%clk 0:01:15.1]} 32... Bxh2 {[%clk 0:00:02.2]} 33.
Kxh2 {[%clk 0:01:16]} 33... Rfg8 {[%clk 0:00:01.9]} 34. d5 {[%clk 0:01:15.5]}
1-0

[Event "Late-Titled-Tuesday-Blitz-February-06-2024"]
[Site "Chess.com"]
[Date "2024.02.06"]
[Round "5"]
[White "Dedic8"]
[Black "Payyappat"]
[Result "0-1"]
[WhiteElo "2855"]
[BlackElo "2527"]
[TimeControl "180+1"]
[EndTime "14:54:06 PST"]
[Termination "Payyappat won by resignation"]

1. d4 {[%clk 0:01:51.2]} 1... Nf6 {[%clk 0:02:58.6]} 2. c4 {[%clk 0:01:51.9]}
2... c5 {[%clk 0:02:58.3]} 3. Nc3 {[%clk 0:01:52.6]} 3... e6 {[%clk 0:02:59.2]}
4. d5 {[%clk 0:01:52.8]} 4... exd5 {[%clk 0:03:00.1]} 5. cxd5 {[%clk 0:01:53.7]}
5... d6 {[%clk 0:03:00.5]} 6. e4 {[%clk 0:01:53.4]} 6... g6 {[%clk 0:03:00.8]}
7. h3 {[%clk 0:01:53.1]} 7... Bg7 {[%clk 0:03:01.2]} 8. Nf3 {[%clk 0:01:53.5]}
8... O-O {[%clk 0:03:01.8]} 9. Bd3 {[%clk 0:01:54.2]} 9... b5 {[%clk 0:03:01.7]}
10. Nxb5 {[%clk 0:01:34.3]} 10... Nxe4 {[%clk 0:02:59.7]} 11. Bxe4 {[%clk
0:01:33.6]} 11... Re8 {[%clk 0:03:00]} 12. Ng5 {[%clk 0:01:25.7]} 12... h6
{[%clk 0:02:38.9]} 13. Ne6 {[%clk 0:01:25.6]} 13... fxe6 {[%clk 0:02:31.3]} 14.
dxe6 {[%clk 0:01:21.9]} 14... Qa5+ {[%clk 0:02:17.7]} 15. Bd2 {[%clk 0:00:40.3]}
15... Qxb5 {[%clk 0:02:12.9]} 16. Bxa8 {[%clk 0:00:41.2]} 16... Rxe6+ {[%clk
0:01:50.4]} 17. Be3 {[%clk 0:00:41.5]} 17... Bxb2 {[%clk 0:01:44.7]} 18. Rc1
{[%clk 0:00:42]} 18... Qb4+ {[%clk 0:01:29.3]} 19. Qd2 {[%clk 0:00:42.2]} 19...
Bxc1 {[%clk 0:01:25.7]} 20. Qxb4 {[%clk 0:00:39.2]} 20... cxb4 {[%clk
0:01:26.6]} 21. Bd5 {[%clk 0:00:39.3]} 21... Bxe3 {[%clk 0:01:25.8]} 22. fxe3
{[%clk 0:00:39]} 22... Kg7 {[%clk 0:01:20]} 23. Bxe6 {[%clk 0:00:39.4]} 23...
Bxe6 {[%clk 0:01:20.9]} 24. Kd2 {[%clk 0:00:37.6]} 24... Bxa2 {[%clk 0:01:20.2]}
25. Ra1 {[%clk 0:00:38.4]} 25... b3 {[%clk 0:01:18.2]} 26. Kc3 {[%clk 0:00:39]}
26... a5 {[%clk 0:01:18.6]} 27. Rf1 {[%clk 0:00:39]} 27... a4 {[%clk 0:01:12.3]}
28. Kb2 {[%clk 0:00:36.3]} 28... Nc6 {[%clk 0:01:11.9]} 29. Rf4 {[%clk
0:00:36.7]} 29... Ne5 {[%clk 0:00:57.6]} 30. Rxa4 {[%clk 0:00:36.8]} 30... Nd3+
{[%clk 0:00:57.6]} 31. Ka3 {[%clk 0:00:37.4]} 31... Bb1 {[%clk 0:00:53.8]} 32.
Rd4 {[%clk 0:00:36.1]} 32... Bc2 {[%clk 0:00:51]} 33. Rxd6 {[%clk 0:00:28.1]}
33... b2 {[%clk 0:00:49.5]} 0-1

[Event "Late-Titled-Tuesday-Blitz-February-06-2024"]
[Site "Chess.com"]
[Date "2024.02.06"]
[Round "5"]
[White "jsdbv18"]
[Black "terrortoast"]
[Result "1-0"]
[WhiteElo "2619"]
[BlackElo "2440"]
[TimeControl "180+1"]
[EndTime "14:54:09 PST"]
[Termination "jsdbv18 won by resignation"]

1. c4 {[%clk 0:03:00]} 1... e5 {[%clk 0:02:59.7]} 2. Nc3 {[%clk 0:02:58.9]} 2...
Nf6 {[%clk 0:03:00.1]} 3. Nf3 {[%clk 0:02:59.2]} 3... Nc6 {[%clk 0:03:00.2]} 4.
e3 {[%clk 0:02:59.3]} 4... Bb4 {[%clk 0:02:59.7]} 5. Qc2 {[%clk 0:02:59.3]} 5...
Bxc3 {[%clk 0:02:59.8]} 6. Qxc3 {[%clk 0:02:59]} 6... Qe7 {[%clk 0:03:00.1]} 7.
d4 {[%clk 0:02:58.5]} 7... Ne4 {[%clk 0:02:52.3]} 8. Qd3 {[%clk 0:02:49.1]} 8...
exd4 {[%clk 0:02:51.6]} 9. Nxd4 {[%clk 0:02:47.9]} 9... Nc5 {[%clk 0:02:52.1]}
10. Qd1 {[%clk 0:02:46.7]} 10... Nxd4 {[%clk 0:02:52.5]} 11. Qxd4 {[%clk
0:02:46.4]} 11... O-O {[%clk 0:02:53.2]} 12. Be2 {[%clk 0:02:45.4]} 12... b6
{[%clk 0:02:52.8]} 13. Bf3 {[%clk 0:02:43.9]} 13... Bb7 {[%clk 0:02:53.2]} 14.
Bxb7 {[%clk 0:02:43.3]} 14... Nxb7 {[%clk 0:02:54.1]} 15. O-O {[%clk 0:02:43.3]}
15... Nc5 {[%clk 0:02:53.1]} 16. b3 {[%clk 0:02:41.9]} 16... Rae8 {[%clk
0:02:41.8]} 17. Bb2 {[%clk 0:02:41.6]} 17... f5 {[%clk 0:02:42.1]} 18. Rfd1
{[%clk 0:02:36.5]} 18... d6 {[%clk 0:02:37.5]} 19. b4 {[%clk 0:02:31]} 19... Ne6
{[%clk 0:02:32]} 20. Qd5 {[%clk 0:02:30.9]} 20... Qf7 {[%clk 0:02:21.6]} 21. a4
{[%clk 0:02:24.6]} 21... Ng5 {[%clk 0:01:55.4]} 22. Rd4 {[%clk 0:02:12.9]} 22...
Ne4 {[%clk 0:01:51]} 23. a5 {[%clk 0:02:04.5]} 23... Rb8 {[%clk 0:01:26.7]} 24.
axb6 {[%clk 0:02:00.2]} 24... axb6 {[%clk 0:01:26.5]} 25. f3 {[%clk 0:01:54.9]}
25... Qxd5 {[%clk 0:01:23.3]} 26. cxd5 {[%clk 0:01:52.7]} 26... Nf6 {[%clk
0:01:21.1]} 27. Ra7 {[%clk 0:01:50.9]} 27... Rfc8 {[%clk 0:01:16.2]} 28. e4
{[%clk 0:01:47.3]} 28... fxe4 {[%clk 0:01:15.1]} 29. fxe4 {[%clk 0:01:47.4]}
29... Ra8 {[%clk 0:01:15.3]} 30. Rxa8 {[%clk 0:01:47.4]} 30... Rxa8 {[%clk
0:01:15.5]} 31. Rc4 {[%clk 0:01:46.9]} 31... Ra7 {[%clk 0:01:15.2]} 32. Bxf6
{[%clk 0:01:37.7]} 32... gxf6 {[%clk 0:01:16.1]} 33. Kf2 {[%clk 0:01:38.1]}
33... Kf7 {[%clk 0:01:12.3]} 34. Kf3 {[%clk 0:01:37.6]} 34... Ke7 {[%clk
0:01:11.8]} 35. Kf4 {[%clk 0:01:37.5]} 35... Kd7 {[%clk 0:01:12.2]} 36. Rc3
{[%clk 0:01:37.5]} 36... Ra4 {[%clk 0:01:11.1]} 37. Rh3 {[%clk 0:01:35.9]} 37...
Rxb4 {[%clk 0:01:09.5]} 38. Rxh7+ {[%clk 0:01:36.5]} 38... Kc8 {[%clk
0:01:09.2]} 39. h4 {[%clk 0:01:37]} 39... Rb2 {[%clk 0:01:05.7]} 40. Rg7 {[%clk
0:01:36.9]} 40... Rf2+ {[%clk 0:01:00.3]} 41. Ke3 {[%clk 0:01:33.6]} 41... Rf1
{[%clk 0:01:00.5]} 42. h5 {[%clk 0:01:33]} 42... Rh1 {[%clk 0:01:00.5]} 43. g4
{[%clk 0:01:32.8]} 43... b5 {[%clk 0:00:58.3]} 44. Rf7 {[%clk 0:01:32.5]} 44...
b4 {[%clk 0:00:57.5]} 45. Rxf6 {[%clk 0:01:30.9]} 45... b3 {[%clk 0:00:55.6]}
46. Rf2 {[%clk 0:01:30.5]} 46... Rh3+ {[%clk 0:00:53]} 47. Kf4 {[%clk
0:01:30.3]} 47... Kb7 {[%clk 0:00:51.7]} 48. Kg5 {[%clk 0:01:27.8]} 48... Kb6
{[%clk 0:00:51.6]} 49. h6 {[%clk 0:01:27.8]} 49... Kc5 {[%clk 0:00:52]} 50. Kg6
{[%clk 0:01:27.5]} 50... Kd4 {[%clk 0:00:52.2]} 51. g5 {[%clk 0:01:27.6]} 51...
Kxe4 {[%clk 0:00:47.9]} 52. Kg7 {[%clk 0:01:26]} 52... Kxd5 {[%clk 0:00:38.5]}
53. h7 {[%clk 0:01:25.7]} 53... c5 {[%clk 0:00:38.7]} 54. h8=Q {[%clk
0:01:23.7]} 54... Rxh8 {[%clk 0:00:38.4]} 55. Kxh8 {[%clk 0:01:24.1]} 55... c4
{[%clk 0:00:39]} 56. g6 {[%clk 0:01:24.7]} 56... c3 {[%clk 0:00:39.4]} 57. g7
{[%clk 0:01:25.5]} 1-0